bitfinex/quotes_ETHUSD_20220120
["timestamp","ask_amount","ask_price","bid_price","bid_amount"]
[1642720973696,0.0073895,3022.8,3021.1,0.00400769]
[1642720973896,0.8305,3023.0,3021.1,0.00400769]
[1642720973897,0.00682108,3022.7,3021.2,0.00170527]
[1642720974302,0.165,3022.8,3021.2,0.00170527]
[1642720974303,0.01230078,3022.4,3021.2,0.00170527]
[1642720974599,1.37253369,3021.4,3021.2,0.00170527]
[1642720974796,0.03450753,3022.3,3021.2,0.00170527]
[1642720974797,0.165,3022.1,3021.2,0.00170527]
[1642720975002,0.165,3021.6,3021.2,0.00170527]
[1642720975402,0.0225873,3021.5,3021.2,0.00170527]
[1642720975636,0.01230404,3021.3,3021.1,1.296e-05]
[1642720976436,0.00170527,3021.5,3021.1,1.296e-05]
[1642720976639,0.165,3021.4,3021.1,1.296e-05]
[1642720976839,0.16613684,3021.4,3021.1,1.296e-05]
[1642720977240,0.00113684,3021.4,3021.1,1.296e-05]
[1642720977838,1.45206344,3021.2,3020.5,0.29334629]
[1642720978041,0.381,3021.1,3020.5,0.29334629]
[1642720978242,1.3744924,3021.0,3020.6,0.00341054]
[1642720978448,0.5133,3020.9,3020.6,0.00341054]
[1642720978647,0.381,3020.9,3020.6,0.00341054]
[1642720979144,0.8280024,3021.0,3020.6,0.00341054]
[1642720979415,0.29779,3021.5,3020.6,0.00341054]
[1642720979611,1.6555972,3021.7,3020.6,0.00341054]
[1642720979812,1.37312356,3022.2,3020.6,0.00341054]
[1642720980012,1.20763356,3022.2,3020.6,0.00341054]
[1642720980216,0.01283356,3022.2,3021.1,1.52500828]
[1642720980414,0.8587,3022.3,3021.2,0.0437531]
[1642720980810,0.8587,3022.3,3021.1,1.52500828]
[1642720981210,0.8587,3022.3,3021.1,1.59890422]
[1642720981419,0.8587,3022.3,3021.3,3.31554]
[1642720981613,0.8587,3022.3,3021.3,0.16554]
[1642720981818,0.8587,3022.3,3021.1,1.27500828]
[1642720982013,0.00454739,3022.2,3021.1,1.22500828]
[1642720982212,0.00454739,3022.2,3021.2,0.00113684]
[1642720982511,0.8587,3022.3,3021.2,0.00113684]
[1642720982512,0.00397897,3022.1,3021.2,0.00113684]
[1642720982914,0.00341054,3022.0,3020.9,0.00284211]
[1642720983344,0.00341054,3022.0,3020.5,0.29334629]
[1642720983345,1.41106197,3021.4,3020.7,0.00397896]
[1642720983542,0.01215163,3021.7,3020.6,0.00454738]
[1642720983943,0.38213685,3021.6,3020.6,0.00454738]
[1642720984143,1.15538543,3021.2,3020.6,0.00454738]
[1642720984543,3.15,3021.1,3020.2,2.1018]
[1642720984756,1.19423759,3020.5,3020.0,0.1435]
[1642720984959,1.19423759,3020.5,3018.7,2.25574]
[1642720984960,0.74021947,3020.4,3018.7,0.6]
[1642720985151,0.01299194,3019.0,3018.0,10.33333333]
[1642720985354,1.42756288,3018.4,3018.0,10.33333333]
[1642720985550,0.01875441,3018.3,3018.0,10.33333333]
[1642720985747,1.09585441,3018.3,3018.0,10.33333333]
[1642720985946,1.09585441,3018.3,3018.0,10.28333333]
[1642720986548,1.12562163,3018.2,3018.0,10.28333333]
[1642720986786,1.4581,3018.3,3018.0,10.28333333]
[1642720986984,1.0771,3018.3,3018.0,10.28333333]
[1642720988085,1.0771,3018.3,3018.1,0.00393251]
[1642720988287,1.17963735,3018.2,3018.1,0.00393251]
[1642720988686,1.0771,3018.3,3018.1,0.00393251]
[1642720988889,1.0771,3018.3,3018.0,10.11316584]
[1642720989098,1.0771,3018.3,3018.2,0.0119369]
[1642720989284,1.0771,3018.3,3018.0,10.07510274]
[1642720989686,3.39614544,3018.1,3018.0,8.32880274]
[1642720989889,3.2,3018.0,3017.9,0.01]
[1642720990088,2.49305681,3018.0,3017.9,0.01]
[1642720990534,0.39305681,3018.0,3017.9,0.01]
[1642720990729,1.90021337,3018.0,3017.9,0.01]
[1642720991030,0.39305681,3018.0,3017.9,0.01]
[1642720992434,3.59305681,3018.0,3017.9,0.01]
[1642720992736,4.02905,3017.7,3016.2,1.0]
[1642720992938,0.0126923,3017.2,3016.2,1.0]
[1642720993141,1.36051895,3017.2,3016.8,0.00795793]
[1642720993336,1.74151895,3017.2,3016.8,0.00795793]
[1642720993535,3.5209917,3016.9,3016.8,0.00795793]
[1642720993741,3.5209917,3016.9,3016.2,1.0]
[1642720993742,1.85,3016.7,3016.2,0.9]
[1642720994040,2.487621,3016.7,3016.3,0.00284211]
[1642720994292,1.9,3016.4,3016.0,0.5]
[1642720994491,1.91233691,3016.4,3016.0,0.5]
[1642720994689,3.2,3016.1,3015.6,1.0]
[1642720994890,3.2,3016.1,3015.5,0.33333333]
[1642720994891,3.05,3015.8,3014.5,1.18182]
[1642720995092,3.05,3015.8,3014.4,0.02707605]
[1642720995093,0.01248241,3014.6,3014.4,0.02707605]
[1642720995296,3.85917357,3014.5,3013.6,0.04125029]
[1642720995495,1.95,3014.2,3013.6,0.04125029]
[1642720995895,0.16549,3014.0,3013.3,0.403]
[1642720996097,0.16549,3014.0,3012.9,0.33333333]
[1642720996098,0.8301978,3013.7,3012.9,0.33333333]
[1642720996296,0.02898758,3013.5,3012.8,12.27740771]
[1642720996497,1.69429536,3013.0,3012.8,10.41517101]
[1642720996697,0.56603082,3012.9,3012.0,0.052652]
[1642720996896,1.45,3012.6,3012.1,1e-08]
[1642720997098,1.45,3012.6,3010.3,0.01]
[1642720997099,0.830708,3012.0,3008.9,0.04409091]
[1642720997296,0.830708,3012.0,3008.4,20.49322325]
[1642720997297,4.763,3010.4,3008.4,20.49322325]
[1642720997497,4.763,3010.4,3009.0,0.01818956]
[1642720997498,1.35706461,3009.9,3009.0,0.01818956]
[1642720997696,1.35706461,3009.9,3008.4,19.80882868]
[1642720997697,0.381,3009.8,3008.6,2.20171506]
[1642720997894,2.51123,3010.4,3008.6,0.00227369]
[1642720998139,0.381,3010.3,3008.7,0.00625266]
[1642720998346,1.5145,3010.4,3008.5,0.0073895]
[1642720998347,3.685e-05,3010.0,3008.5,0.0073895]
[1642720998539,0.0011737,3010.2,3008.6,0.00792108]
[1642720998743,0.0011737,3010.2,3008.2,0.4]
[1642720998744,0.00174212,3010.3,3009.7,1.11801382]
[1642720999141,0.13819997,3011.1,3009.8,0.0011]
[1642720999142,0.0011737,3010.2,3009.8,0.0011]
[1642720999344,0.0011737,3010.2,3009.8,0.0028]
[1642720999646,0.2295,3010.5,3008.3,0.01132635]
[1642720999848,0.16549,3010.4,3008.3,0.01132635]
[1642721000055,0.38482678,3010.3,3008.3,0.01132635]
[1642721000241,0.381,3010.3,3009.0,1.30886805]
[1642721000644,0.1328,3010.6,3009.1,0.00677896]
[1642721000848,0.8476,3010.7,3009.1,0.00677896]
[1642721001043,0.00117897,3010.5,3009.1,0.00677896]
[1642721001342,0.00174739,3010.6,3009.1,0.0803885]
[1642721001545,0.16549,3010.5,3008.4,0.381]
[1642721001795,0.1328,3010.4,3008.4,0.381]
[1642721001990,0.1328,3010.4,3008.5,0.00341054]
[1642721001991,0.0073895,3010.4,3008.5,0.00341054]
[1642721002193,0.01927478,3010.3,3009.3,0.01672038]
[1642721002399,5.27349997,3011.1,3009.3,0.01672038]
[1642721002595,0.27099997,3011.2,3010.3,1.55304294]
[1642721002596,0.13819997,3011.2,3010.3,1.55304294]
[1642721002799,4.985218,3012.5,3009.8,0.381]
[1642721002800,3.685e-05,3010.5,3009.8,0.381]
[1642721002997,7.661408,3012.5,3010.4,3.32370658]
[1642721002998,4.739e-05,3011.1,3010.4,3.32370658]
[1642721003195,4.42679,3013.1,3010.4,3.32370658]
[1642721003196,0.02369847,3012.4,3010.5,0.381]
[1642721003401,0.02369847,3012.4,3010.5,0.45806973]
[1642721003402,0.00743689,3012.4,3010.5,0.45806973]
[1642721003600,0.1328,3013.4,3010.6,0.07650131]
[1642721003601,0.00686847,3012.3,3010.6,0.07650131]
[1642721003799,6.847e-05,3012.3,3012.0,1.16242425]
[1642721003999,20.20705216,3014.4,3012.0,1.16242425]
[1642721004000,5e-08,3012.2,3012.0,1.16242425]
[1642721004199,20.20705216,3014.4,3012.3,0.02103441]
[1642721004400,20.20705216,3014.4,3012.4,0.381]
[1642721004599,20.20705216,3014.4,3012.5,0.40354821]
[1642721004600,0.00513689,3014.3,3012.5,0.40354821]
[1642721004799,0.01080005,3014.3,3012.6,0.01583697]
[1642721004999,0.01023162,3014.2,3012.7,0.3]
[1642721005202,3.162e-05,3014.2,3012.8,3.48342967]
[1642721005405,20.20705216,3014.4,3012.8,3.48342967]
[1642721005406,0.0096632,3014.1,3013.0,0.04840682]
[1642721005670,0.0096632,3014.1,3013.2,0.02724083]
[1642721005857,0.0096632,3014.1,3013.3,0.381]
[1642721005858,6.32e-05,3014.1,3013.3,0.381]
[1642721006062,0.2535,3014.7,3013.3,0.381]
[1642721006063,0.2535,3014.7,3013.5,0.03934006]
[1642721006259,0.2535,3014.7,3013.4,3.25]
[1642721006260,0.2535,3014.7,3013.8,1.17212123]
[1642721006665,0.02718689,3013.7,3011.4,0.381]
[1642721006866,0.02718689,3013.7,3011.3,1.5]
[1642721007063,0.381,3014.0,3013.4,0.01472423]
[1642721007263,41.98527577,3013.4,3012.6,0.0073895]
[1642721007463,0.381,3014.0,3013.5,0.00227369]
[1642721007662,41.99772631,3013.2,3012.7,1.50250462]
[1642721007865,0.00227369,3013.9,3012.8,0.1327]
[1642721008263,0.381,3014.0,3012.9,0.00341054]
[1642721008264,0.00170527,3013.8,3012.9,0.00341054]
[1642721008670,0.00113685,3013.7,3012.9,0.00341054]
[1642721008865,0.00113685,3013.7,3013.0,1.14344701]
[1642721009165,0.00113685,3013.7,3013.1,0.00227369]
[1642721009389,0.00113685,3013.7,3011.9,0.0337]
[1642721009390,41.99772631,3013.1,3011.9,0.0337]
[1642721009592,3.631,3013.6,3011.9,0.0337]
[1642721009593,0.4571052,3013.0,3011.9,0.0337]
[1642721009787,41.76515788,3012.5,3011.9,0.0337]
[1642721009991,0.381,3012.9,3010.6,0.1327]
[1642721009992,0.381,3012.4,3010.6,0.1327]
[1642721010192,0.00170527,3012.9,3012.0,0.00341054]
[1642721010193,0.381,3012.3,3012.0,0.00341054]
[1642721010387,0.381,3012.5,3012.0,0.00341054]
[1642721010895,0.381,3013.3,3012.0,0.00341054]
[1642721011297,1.054e-05,3013.2,3012.9,1.25306124]
[1642721011696,2.12361976,3014.3,3013.0,0.00112631]
[1642721011895,0.00740004,3014.5,3013.0,0.00112631]
[1642721012090,0.381,3014.8,3013.1,0.1327]
[1642721012091,0.00569477,3014.2,3013.1,0.1327]
[1642721012289,0.00683162,3014.4,3013.0,0.1327]
[1642721012490,0.00512635,3014.1,3012.9,0.00169473]
[1642721012690,0.0062632,3014.3,3012.9,0.00169473]
[1642721012897,0.00455793,3014.0,3012.9,0.00169473]
[1642721013135,0.00455793,3014.0,3011.1,0.4147]
[1642721013136,0.06606631,3012.8,3011.3,0.01224734]
[1642721013338,0.01235274,3013.5,3013.2,0.16903369]
[1642721013535,1.47440677,3012.4,3012.2,0.00397896]
[1642721013740,0.9452,3012.4,3012.2,0.00397896]
[1642721013941,41.99602104,3012.2,3010.5,0.2176]
[1642721014136,41.5306,3011.8,3010.5,2.34121976]
[1642721014340,41.5306,3011.8,3010.5,0.2176]
[1642721014541,0.39328268,3012.1,3010.6,0.00909478]
[1642721014738,1.36862255,3011.7,3010.6,0.00909478]
[1642721014938,0.381,3011.6,3010.6,0.00909478]
[1642721015139,0.381,3012.0,3010.6,0.00909478]
[1642721015938,0.01252518,3013.0,3010.7,0.08432549]
[1642721015939,0.381,3012.5,3010.7,0.08432549]
[1642721016140,0.381,3012.5,3010.8,0.1328]
[1642721016341,0.00113684,3012.4,3010.8,0.00795793]
[1642721016544,0.00113684,3012.4,3010.9,0.09018951]
[1642721016822,0.00113684,3012.4,3010.8,0.00795793]
[1642721017011,0.00113684,3012.4,3010.5,0.2176]
[1642721017012,0.381,3012.3,3011.0,0.00682109]
[1642721017211,0.01228381,3012.2,3010.9,0.00738951]
[1642721017411,1.44863226,3012.0,3010.9,0.00738951]
[1642721017611,0.381,3011.9,3010.9,0.00738951]
[1642721017811,0.381,3011.9,3010.7,0.00852636]
[1642721018012,2.09018908,3011.8,3010.8,0.00795793]
[1642721018211,0.54649,3011.7,3010.8,0.00795793]
[1642721018511,0.381,3011.6,3010.5,0.2176]
[1642721018708,0.38554738,3011.6,3010.6,0.00113685]
[1642721018910,2.64871588,3011.2,3010.6,0.00113685]
[1642721019116,0.381,3011.1,3010.6,0.00113685]
[1642721019314,0.38270527,3011.1,3010.6,0.00113685]
[1642721019516,0.00113684,3011.0,3010.6,0.00113685]
[1642721019715,0.00113684,3011.0,3010.4,0.2904]
[1642721019716,0.00113684,3011.0,3010.5,0.00170527]
[1642721019915,0.381,3010.9,3010.5,0.00170527]
[1642721020221,0.381,3010.9,3010.4,0.2904]
[1642721020222,41.99829473,3010.5,3010.4,0.2904]
[1642721020414,41.99829473,3010.5,3008.6,0.0122718]
[1642721020415,41.7096,3010.3,3008.6,0.0122718]
[1642721020661,3.42357783,3010.2,3008.6,0.0122718]
[1642721020843,2.71340761,3010.2,3008.7,0.01023163]
[1642721021041,0.381,3010.2,3008.7,0.01023163]
[1642721021650,0.381,3010.2,3008.8,1.18970958]
[1642721021941,0.381,3010.2,3008.9,0.00909478]
[1642721022846,0.69389143,3010.2,3008.9,0.00909478]
[1642721023045,0.69389143,3010.2,3009.0,0.00406812]
[1642721023046,0.46549,3010.1,3009.0,0.00406812]
[1642721023245,0.381,3010.0,3009.0,0.00406812]
[1642721023451,2.08266096,3009.9,3009.1,0.00795793]
[1642721023746,41.99994207,3009.1,3009.0,6.812e-05]
[1642721023949,1.0486,3009.1,3009.0,6.812e-05]
[1642721024151,1.0486,3009.1,3008.2,0.4]
[1642721024394,1.31812794,3008.6,3008.2,0.4]
[1642721024598,1.59279635,3008.5,3008.3,0.00454739]
[1642721025194,1.59279635,3008.5,3007.7,0.0223]
[1642721025195,1.08818406,3007.9,3007.7,0.0223]
[1642721025394,0.381,3007.9,3006.5,0.08328484]
[1642721025597,0.381,3007.9,3007.8,0.00284212]
[1642721025995,0.381,3007.9,3006.8,0.00852635]
[1642721026199,0.381,3008.5,3006.9,0.07196624]
[1642721026398,3.66147896,3009.8,3007.1,0.01227519]
[1642721026399,1.34815326,3009.0,3007.1,0.01227519]
[1642721026597,0.381,3009.2,3007.8,1.24586198]
[1642721026598,0.00227369,3008.7,3007.8,1.24586198]
[1642721026801,0.00341054,3008.9,3007.2,0.00625266]
[1642721026998,0.00170527,3008.6,3007.9,0.00227369]
[1642721027198,0.00284212,3008.8,3007.2,0.00625266]
[1642721027403,0.61829997,3009.2,3006.5,0.70483893]
[1642721027404,0.00113685,3008.5,3006.5,0.70483893]
[1642721027600,7.369e-05,3008.7,3007.4,0.01223334]
[1642721027800,2.108e-05,3008.4,3007.3,0.07196624]
[1642721028040,5.793e-05,3008.6,3007.9,0.10987817]
[1642721028247,5.793e-05,3008.6,3008.0,1.19966466]
[1642721028442,5.793e-05,3008.6,3008.1,0.11609139]
[1642721028649,5.793e-05,3008.6,3008.1,0.13877558]
[1642721028848,5.793e-05,3008.6,3008.0,0.3719772]
[1642721028849,0.01214177,3010.4,3008.6,0.00074207]
[1642721029049,1.3229611,3011.1,3008.7,0.14151892]
[1642721029249,1.3229611,3011.1,3008.7,0.05303158]
[1642721029250,0.0125891,3010.9,3008.7,0.05303158]
[1642721029452,0.15078907,3010.9,3008.8,0.01876315]
[1642721029648,0.15078907,3010.9,3009.7,1.13705059]
[1642721029847,0.15078907,3010.9,3009.7,0.00131048]
[1642721030048,0.15078907,3010.9,3009.8,0.01307892]
[1642721030247,0.15078907,3010.9,3009.8,0.01438942]
[1642721030248,0.16549,3010.8,3009.8,0.01438942]
[1642721030446,0.16549,3010.8,3008.7,0.0337]
[1642721030447,41.98561058,3009.8,3008.7,0.0337]
[1642721030651,41.98561058,3009.8,3008.7,0.0013105]
[1642721030652,0.8373,3009.8,3008.7,0.0013105]
[1642721030853,0.01220525,3009.5,3008.8,0.00568423]
[1642721031148,0.01220525,3009.5,3008.8,0.00699473]
[1642721031549,0.01220525,3009.5,3008.6,1.20789804]
[1642721031784,0.00341054,3009.4,3008.6,1.20920854]
[1642721031989,0.00341054,3009.4,3008.6,1.00920854]
[1642721032188,0.00284211,3009.3,3008.6,0.0013105]
[1642721032584,0.00227369,3009.2,3008.6,0.0013105]
[1642721032989,0.00170527,3009.1,3008.6,0.00131054]
[1642721033390,0.01220525,3009.5,3006.6,1.66213]
[1642721033391,41.99868946,3008.6,3006.6,1.66213]
[1642721033590,41.99868946,3008.6,3006.4,0.13391274]
[1642721033591,0.01003889,3008.4,3006.4,0.13391274]
[1642721033789,0.7247,3008.6,3006.7,0.0119369]
[1642721033998,0.620105,3008.6,3006.7,0.0119369]
[1642721034397,1.44237328,3007.8,3006.8,1.3417803]
[1642721034605,0.381,3008.3,3006.8,1.3417803]
[1642721034797,0.381,3008.3,3006.9,0.01080005]
[1642721035840,1.17430839,3008.0,3006.9,0.01080005]
[1642721036444,18.02990425,3012.1,3007.0,3.2]
[1642721036652,18.02990425,3012.1,3008.5,0.01249581]
[1642721036653,0.133,3011.0,3008.5,0.01249581]
[1642721036844,0.00113685,3009.6,3008.8,0.83055]
[1642721037046,1.40420425,3012.1,3008.8,0.83055]
[1642721037047,1.66088,3012.8,3009.1,0.83048]
[1642721037251,24.04730309,3013.0,3009.7,4.763]
[1642721037252,20.21711243,3013.0,3009.7,4.763]
[1642721037445,20.21711243,3013.0,3010.2,18.95]
[1642721037446,1.12078272,3012.8,3010.2,18.95]
[1642721037649,20.21711243,3013.0,3011.2,0.01298325]
[1642721037848,20.21711243,3013.0,3011.6,0.82988]
[1642721037849,0.01762112,3012.7,3011.6,0.82988]
[1642721038146,0.0170527,3012.6,3011.9,0.01226331]
[1642721038347,0.0170527,3012.6,3012.0,0.381]
[1642721038645,0.01226736,3013.0,3012.1,0.00284212]
[1642721039145,0.01454105,3013.0,3012.2,0.16592]
[1642721039597,0.00227369,3013.0,3012.4,1.24123263]
[1642721039805,7.369e-05,3013.0,3012.5,0.16592]
[1642721040005,7.369e-05,3013.0,3012.6,0.12072843]
[1642721040202,0.03,3015.1,3013.0,0.16691485]
[1642721040399,0.93420425,3016.1,3013.2,19.10767007]
[1642721040598,1.581e-05,3013.9,3013.8,3.57928]
[1642721040798,0.73796709,3016.0,3013.8,3.57928]
[1642721040799,0.17811822,3015.6,3013.8,0.381]
[1642721040998,0.17811822,3015.6,3013.3,0.00339473]
[1642721040999,0.01250549,3014.9,3013.3,0.00339473]
[1642721041198,0.01277161,3014.2,3013.3,0.00339473]
[1642721041400,0.01277161,3014.2,3013.1,0.00453157]
[1642721041595,0.01277161,3014.2,3012.8,0.16592]
[1642721041596,0.00115266,3014.1,3012.8,0.16592]
[1642721041797,0.00115266,3014.1,3012.9,0.00566842]
[1642721042002,0.01269627,3013.3,3011.1,0.14958508]
[1642721042199,0.13819997,3013.2,3011.2,0.17207118]
[1642721042402,0.01202606,3012.5,3011.2,0.0096632]
[1642721042696,0.01202606,3012.5,3011.3,1.11544718]
[1642721042897,0.01202606,3012.5,3011.2,0.0096632]
[1642721043147,0.01202606,3012.5,3009.6,3.32036]
[1642721043148,0.16589,3012.4,3011.4,0.00852635]
[1642721043348,0.54689,3012.4,3011.4,0.00852635]
[1642721043545,0.1328,3012.3,3010.5,0.01364216]
[1642721043746,0.381,3012.2,3010.4,0.01688508]
[1642721043944,1.17602161,3011.6,3010.4,1.43993543]
[1642721044150,0.381,3012.2,3010.5,0.01364216]
[1642721044348,0.16589,3012.1,3010.5,0.01364216]
[1642721044551,0.29869,3012.1,3010.2,0.67408159]
[1642721044749,0.00852635,3012.0,3010.3,0.00113685]
[1642721044954,0.00852635,3012.0,3010.3,2.05376805]
[1642721045153,0.00795792,3011.9,3010.4,0.83033]
[1642721045350,0.00795792,3011.9,3010.9,0.01257577]
[1642721045549,0.0073895,3011.8,3010.9,0.01257577]
[1642721045749,0.0073895,3011.8,3010.9,18.97946085]
[1642721045954,0.1556,3012.8,3010.9,18.97946085]
[1642721045955,2.108e-05,3012.8,3011.6,0.01290991]
[1642721046154,2.108e-05,3012.8,3011.8,0.82993]
[1642721046355,2.108e-05,3012.8,3011.9,22.5023167]
[1642721046558,2.108e-05,3012.8,3012.3,0.01205283]
[1642721046793,2.108e-05,3012.8,3012.5,0.08804846]
[1642721046996,2.108e-05,3012.8,3012.7,18.97944541]
[1642721047196,0.17859416,3015.4,3012.8,0.1327]
[1642721047393,0.17859416,3015.4,3013.9,1.21664732]
[1642721047394,0.01270416,3015.4,3013.9,1.21664732]
[1642721047600,0.20426374,3016.0,3013.6,2.9]
[1642721047794,0.61342351,3015.9,3013.6,2.9]
[1642721047995,0.61342351,3015.9,3013.4,0.25569469]
[1642721047996,1.45036205,3014.5,3013.7,0.00170527]
[1642721048198,1.45036205,3014.5,3013.7,0.00053089]
[1642721048391,1.45036205,3014.5,3013.5,0.00284212]
[1642721048392,0.00227369,3014.4,3013.5,0.00284212]
[1642721048594,1.1330437,3014.0,3013.2,0.00337301]
[1642721048796,1.1330437,3014.0,3011.5,1.2287]
[1642721048797,0.16581,3013.9,3013.0,0.00450986]
[1642721048995,0.01234166,3013.6,3012.4,0.0079204]
[1642721049194,0.01234166,3013.6,3012.0,0.01019409]
[1642721049395,1.1330437,3014.0,3012.3,0.01295793]
[1642721049597,1.1330437,3014.0,3012.4,0.1327]
[1642721049598,1.2988537,3014.0,3012.4,0.1327]
[1642721049794,1.2988537,3014.0,3012.4,0.1406204]
[1642721049795,1.1330437,3014.0,3012.4,0.1406204]
[1642721049997,0.13819997,3014.1,3012.5,0.00707759]
[1642721050200,0.00088033,3013.9,3012.5,0.00707759]
[1642721050399,0.00144876,3014.0,3012.6,0.111]
[1642721050963,0.00088033,3013.9,3012.7,0.00594075]
[1642721051168,2.08476973,3013.9,3012.7,0.00594075]
[1642721051363,0.1327,3013.8,3012.7,0.00594075]
[1642721051564,0.1327,3013.8,3012.5,0.00707759]
[1642721051565,0.29851,3013.8,3012.5,0.00707759]
[1642721051963,1.15142188,3013.2,3012.5,0.00707759]
[1642721052164,0.16581,3013.5,3012.5,0.00707759]
[1642721053266,0.54681,3013.5,3012.5,0.00707759]
[1642721053467,2.73033223,3013.4,3012.5,0.00159697]
[1642721053667,0.67951,3013.3,3012.2,0.00330224]
[1642721053867,2.53827958,3013.2,3012.2,0.00330224]
[1642721054068,0.30238199,3013.2,3012.2,0.00330224]
[1642721054294,0.38281357,3013.1,3012.2,0.00330224]
[1642721054697,0.00124514,3013.0,3012.2,0.00330224]
[1642721054902,0.381,3012.9,3012.2,0.00330224]
[1642721055099,0.29851,3012.8,3012.2,0.00330224]
[1642721055298,41.99669776,3012.2,3011.6,0.1327]
[1642721055503,0.16581,3012.3,3011.6,0.1327]
[1642721055696,0.16581,3012.3,3011.7,0.00284212]
[1642721056096,0.16581,3012.3,3010.9,0.00738951]
[1642721056298,0.16581,3012.3,3010.7,0.00852636]
[1642721057697,0.16581,3012.3,3010.8,0.1328]
[1642721057896,1.91862831,3012.4,3010.8,0.1328]
[1642721058146,1.13868633,3011.6,3010.9,0.00738951]
[1642721058342,1.91862831,3012.4,3010.9,0.00738951]
[1642721058543,0.39580838,3012.3,3010.9,0.00738951]
[1642721058742,0.381,3012.2,3010.7,0.00852636]
[1642721058947,0.39553137,3012.1,3010.7,0.00852636]
[1642721059146,0.39553137,3012.1,3010.6,0.00909478]
[1642721059147,0.5138,3012.0,3010.6,0.00909478]
[1642721059545,0.8138,3012.0,3010.6,0.00909478]
[1642721059747,2.69922319,3011.3,3010.6,0.00909478]
[1642721060046,0.05508,3011.7,3010.6,0.00909478]
[1642721060447,0.43608,3011.7,3010.6,0.00909478]
[1642721060654,0.43608,3011.7,3010.0,0.02530039]
[1642721060847,1.50577235,3011.5,3010.1,0.0119369]
[1642721061049,0.43608,3011.7,3010.1,0.0119369]
[1642721061647,1.2666406,3011.7,3010.1,0.0119369]
[1642721061897,1.43916663,3011.2,3010.1,0.0119369]
[1642721062295,1.2666406,3011.7,3010.1,0.0119369]
[1642721062296,0.05508,3011.5,3010.1,0.0119369]
[1642721062498,1.87900133,3011.1,3010.1,0.0119369]
[1642721062996,1.82900133,3011.1,3010.1,0.0119369]
[1642721063199,3.04811763,3011.1,3010.1,0.0119369]
[1642721063598,0.05508,3011.6,3010.1,0.0119369]
[1642721063797,0.381,3011.7,3010.2,0.09206876]
[1642721064005,1.66085,3012.2,3010.7,0.01272986]
[1642721064006,0.381,3012.2,3010.7,0.01272986]
[1642721064200,0.00284211,3012.7,3010.8,0.2766719]
[1642721064402,0.00284211,3012.7,3011.5,0.11333971]
[1642721064600,5.09029153,3013.0,3011.5,1.5]
[1642721064601,0.00227369,3012.6,3011.5,1.5]
[1642721064800,0.00227369,3012.6,3011.6,0.00341055]
[1642721065004,0.00170527,3012.5,3011.6,0.00341055]
[1642721065201,0.00170527,3012.5,3011.7,0.12297067]
[1642721065400,0.00170527,3012.5,3011.6,0.00341055]
[1642721065401,0.00113684,3012.4,3011.6,0.00341055]
[1642721065645,0.00113684,3012.4,3011.8,0.0022737]
[1642721065852,0.00397896,3012.9,3011.6,0.16951055]
[1642721066047,0.00397896,3012.9,3011.6,0.00341055]
[1642721066246,0.00341054,3012.8,3011.6,0.16951055]
[1642721066649,0.01270242,3013.0,3011.6,0.16951055]
[1642721066650,0.00284211,3012.7,3011.6,0.16951055]
[1642721066849,0.00284211,3012.7,3011.6,0.00341055]
[1642721067049,1.31802911,3013.0,3011.7,2.3]
[1642721067251,1.31802911,3013.0,3012.0,0.0185852]
[1642721067450,0.00170527,3012.9,3012.0,0.00686454]
[1642721067652,1.4557541,3012.7,3012.1,0.00284212]
[1642721067952,0.00113685,3012.8,3012.1,0.00284212]
[1642721068158,0.05508,3012.7,3012.1,0.00073803]
[1642721068361,0.05775251,3012.7,3012.1,0.00073803]
[1642721068653,0.05775251,3012.7,3011.5,1.5]
[1642721068654,0.00210409,3012.6,3011.5,0.1925996]
[1642721069052,1.52882898,3012.5,3011.6,0.00284212]
[1642721069324,2.25911898,3012.5,3011.6,0.00284212]
[1642721069526,2.25911898,3012.5,3011.6,0.00511582]
[1642721070330,2.56668547,3012.4,3011.6,0.00511582]
[1642721070531,0.33429269,3012.3,3011.6,0.00511582]
[1642721070727,0.05508,3012.3,3011.6,0.00511582]
[1642721071128,0.00508,3012.3,3011.6,0.00511582]
[1642721071535,0.8304,3012.1,3011.6,0.00511582]
[1642721071730,0.26649859,3012.0,3011.6,0.00511582]
[1642721071930,1.9,3012.0,3010.5,0.74517491]
[1642721072131,2.38330984,3012.0,3010.5,0.64257358]
[1642721072330,1.53728934,3011.8,3010.6,1.45230979]
[1642721072530,3.97425813,3011.8,3010.6,0.00568423]
[1642721072729,0.26598564,3011.7,3010.7,0.00511581]
[1642721073137,2.28590322,3011.6,3010.7,0.00511581]
[1642721073343,2.37283934,3011.8,3010.7,0.00511581]
[1642721073546,1.1180164,3011.3,3010.7,0.00511581]
[1642721073950,2.3233926,3011.2,3010.7,0.00511581]
[1642721074343,0.00508,3011.1,3010.7,0.00511581]
[1642721074742,0.83067,3011.2,3010.7,0.00511581]
[1642721075144,0.83067,3011.2,3010.2,0.00795792]
[1642721075347,0.00508,3011.1,3010.2,0.00795792]
[1642721076052,0.00508,3011.1,3010.0,0.00909477]
[1642721076448,0.8307,3010.9,3010.0,0.00909477]
[1642721076654,1.66165,3010.7,3010.0,0.00909477]
[1642721076897,1.51158933,3010.3,3010.0,0.00909477]
[1642721077096,2.34246933,3010.3,3010.0,0.00909477]
[1642721078298,0.83088,3010.3,3010.0,0.00909477]
[1642721078504,3.3233923,3010.7,3010.0,0.00909477]
[1642721078505,0.83079,3010.6,3010.0,0.00909477]
[1642721078704,2.25429081,3010.8,3010.0,0.00909477]
[1642721078903,3.08508081,3010.8,3010.0,9.477e-05]
[1642721079104,42.0,3010.0,3007.8,0.33819679]
[1642721079302,4.00929488,3010.7,3007.8,0.1661]
[1642721079303,1.41199328,3009.7,3007.8,0.1661]
[1642721079502,0.13868,3009.9,3007.8,0.1661]
[1642721079503,0.83111,3009.4,3008.0,0.01247057]
[1642721079702,1.66214,3009.8,3008.1,0.1661]
[1642721079901,0.0008,3009.9,3009.0,1.27406114]
[1642721080305,0.0008,3009.9,3009.1,0.00511581]
[1642721080548,0.0008,3009.9,3009.2,0.8306347]
[1642721080749,0.0008,3009.9,3009.4,0.01286006]
[1642721080952,2.25770135,3010.6,3009.5,1.45462721]
[1642721081148,2.25770135,3010.6,3009.6,0.10574049]
[1642721081353,0.01261333,3011.6,3009.6,0.10574049]
[1642721081354,0.00284212,3010.5,3009.6,0.10801418]
[1642721081547,4.212e-05,3010.5,3009.8,0.12355253]
[1642721081750,2.25429081,3011.6,3010.3,3.2]
[1642721081751,7.369e-05,3010.4,3010.3,3.2]
[1642721081953,7.369e-05,3010.4,3010.3,22.3161]
[1642721082149,2.25429081,3011.6,3010.6,0.10456178]